fUSD/lending_fUSD_20260116
["ID","MTS","AMOUNT","RATE_DAILY","PERIOD"]
[402157480,1768553717043,-686.98,0.00039178,10]
[402157481,1768553717052,-350.22834188,0.00039178,10]
[402157482,1768553717061,-1173.84,0.00039178,10]
[402157483,1768553717071,-9836.18,0.00039178,10]
[402157484,1768553717080,-500.0,0.00039178,10]
[402157485,1768553717090,-600.0,0.00039178,30]
[402157486,1768553717100,-200.0,0.00039178,5]
[402157487,1768553717109,-150.0,0.00039185,7]
[402157488,1768553717118,-150.0,0.00039209,7]
[402157489,1768553717128,-238.90934185,0.00039215,7]
[402157490,1768553717137,-200.06159783,0.00039215,7]
[402157491,1768553717146,-162.8115885,0.00039215,7]
[402157492,1768553717156,-214.36344643,0.00039215,7]
[402157493,1768553717167,-203.67457519,0.00039215,7]
[402157494,1768553717176,-303.49476013,0.00039215,7]
[402157495,1768553717185,-167.99625046,0.00039215,7]
[402157496,1768553717194,-150.0,0.00039253,7]
[402157497,1768553717204,-238.90934185,0.00039272,7]
[402157498,1768553717213,-200.06159783,0.00039272,7]
[402157499,1768553717222,-162.8115885,0.00039272,7]
[402157500,1768553717232,-214.36344643,0.00039272,7]
[402157501,1768553717241,-203.67457519,0.00039272,7]
[402157502,1768553717251,-303.49476013,0.00039272,7]
[402157503,1768553717260,-167.99625046,0.00039272,7]
[402157504,1768553717269,-150.0,0.00039289,7]
[402157505,1768553717279,-150.0,0.000393,7]
[402157506,1768553717288,-322.07272331,0.00039315,30]
[402157507,1768553717298,-238.90934185,0.00039329,7]
[402157508,1768553717308,-200.06159783,0.00039329,7]
[402157509,1768553717317,-162.8115885,0.00039329,7]
[402157510,1768553717327,-214.36344643,0.00039329,7]
[402157511,1768553717336,-203.67457519,0.00039329,7]
[402157512,1768553717346,-303.49476013,0.00039329,7]
[402157513,1768553717355,-167.99625046,0.00039329,7]
[402157514,1768553717364,-150.0,0.00039358,7]
[402157515,1768553717374,-150.0,0.00039358,7]
[402157516,1768553717383,-150.0,0.00039358,7]
[402157517,1768553717393,-238.90934185,0.00039387,7]
[402157518,1768553717402,-200.06159783,0.00039387,7]
[402157519,1768553717412,-162.8115885,0.00039387,7]
[402157520,1768553717421,-214.36344643,0.00039387,7]
[402157521,1768553717431,-203.67457519,0.00039387,7]
[402157522,1768553717440,-303.49476013,0.00039387,7]
[402157523,1768553717449,-167.99625046,0.00039387,7]
[402157524,1768553717458,-1000.0,0.000394,120]
[402157525,1768553717467,-240.95,0.000394,14]
[402157526,1768553717476,-150.0,0.00039416,7]
[402157527,1768553717488,-150.0,0.00039427,7]
[402157528,1768553717498,-152.0,0.00039433,9]
[402157529,1768553717507,-238.90934185,0.00039444,7]
[402157530,1768553717517,-200.06159783,0.00039444,7]
[402157531,1768553717526,-162.8115885,0.00039444,7]
[402157532,1768553717535,-214.36344643,0.00039444,7]
[402157533,1768553717544,-203.67457519,0.00039444,7]
[402157534,1768553717553,-303.49476013,0.00039444,7]
[402157535,1768553717564,-167.99625046,0.00039444,7]
[402157536,1768553717574,-1103.68,0.00039451,30]
[402157537,1768553717583,-567.28,0.00039452,10]
[402157538,1768553717592,-1031.15,0.00039452,10]
[402157539,1768553717601,-151.0,0.00039452,10]
[402157540,1768553717612,-500.0,0.00039452,10]
[402157541,1768553717621,-491.30269953,0.00039452,10]
[402157542,1768553717631,-808.21,0.00039452,10]
[402157543,1768553717642,-813.73,0.00039452,10]
[402157544,1768553717652,-973.06,0.00039452,10]
[402157545,1768553717662,-504.36,0.00039452,10]
[402157546,1768553717671,-500.0,0.00039452,10]
[402157547,1768553717680,-674.01,0.00039452,10]
[402157548,1768553717689,-500.0,0.00039452,10]
[402157549,1768553717698,-1037.35,0.00039452,10]
[402157550,1768553717707,-525.62,0.00039452,10]
[402157551,1768553717716,-1211.73,0.00039452,10]
[402157552,1768553717725,-500.0,0.00039452,10]
[402157553,1768553717734,-654.54,0.00039452,10]
[402157554,1768553717743,-902.4,0.00039452,10]
[402157555,1768553717751,-548.97,0.00039452,10]
[402157556,1768553717761,-915.0,0.00039452,10]
[402157557,1768553717770,-786.94,0.00039452,10]
[402157558,1768553717779,-1003.52,0.00039452,10]
[402157559,1768553717789,-500.0,0.00039452,10]
[402157560,1768553717798,-837.95,0.00039452,10]
[402157561,1768553717808,-551.36,0.00039452,10]
[402157562,1768553717817,-548.17,0.00039452,10]
[402157563,1768553717825,-1196.74,0.00039452,10]
[402157564,1768553717835,-587.74,0.00039452,10]
[402157565,1768553717844,-500.0,0.00039452,10]
[402157566,1768553717853,-1100.8,0.00039452,10]
[402157567,1768553717862,-1067.27,0.00039452,10]
[402157568,1768553717872,-500.0,0.00039452,10]
[402157569,1768553717881,-826.56,0.00039452,10]
[402157570,1768553717890,-500.0,0.00039452,10]
[402157571,1768553717900,-875.73,0.00039452,10]
[402157572,1768553717910,-866.61,0.00039452,10]
[402157573,1768553717920,-542.86,0.00039452,10]
[402157574,1768553717929,-559.30900789,0.00039452,10]
[402157575,1768553717938,-513.96,0.00039452,10]
[402157576,1768553717948,-853.02,0.00039452,10]
[402157577,1768553717957,-625.29,0.00039452,10]
[402157578,1768553717967,-568.61,0.00039452,10]
[402157579,1768553717978,-500.0,0.00039452,10]
[402157580,1768553717988,-503.47,0.00039452,10]
[402157581,1768553717998,-500.0,0.00039452,10]
[402157582,1768553718009,-500.0,0.00039452,10]
[402157583,1768553718019,-1479.39,0.00039452,10]
[402157584,1768553718028,-668.37,0.00039452,10]
[402157585,1768553718038,-554.51,0.00039452,10]
[402157586,1768553718047,-823.81,0.00039452,10]
[402157587,1768553718056,-522.66,0.00039452,10]
[402157588,1768553718065,-632.8,0.00039452,10]
[402157589,1768553718075,-760.77,0.00039452,10]
[402157590,1768553718084,-540.98,0.00039452,10]
[402157591,1768553718094,-500.0,0.00039452,10]
[402157592,1768553718104,-500.0,0.00039452,10]
[402157593,1768553718114,-513.95,0.00039452,10]
[402157594,1768553718123,-543.44,0.00039452,10]
[402157595,1768553718132,-766.12,0.00039452,10]
[402157596,1768553718142,-745.1,0.00039452,10]
[402157597,1768553718154,-500.0,0.00039452,10]
[402157598,1768553718163,-602.84,0.00039452,10]
[402157599,1768553718173,-681.64,0.00039452,10]
[402157600,1768553718183,-946.6,0.00039452,10]
[402157601,1768553718192,-982.01,0.00039452,10]
[402157602,1768553718202,-1431.59,0.00039452,10]
[402157603,1768553718210,-582.81,0.00039452,10]
[402157604,1768553718220,-500.0,0.00039452,10]
[402157605,1768553718231,-500.0,0.00039452,10]
[402157606,1768553718240,-500.0,0.00039452,10]
[402157607,1768553718250,-872.15,0.00039452,10]
[402157608,1768553718259,-703.99,0.00039452,10]
[402157609,1768553718269,-548.64,0.00039452,10]
[402157610,1768553718279,-850.54,0.00039452,10]
[402157611,1768553718289,-1034.71,0.00039452,10]
[402157612,1768553718300,-500.0,0.00039452,10]
[402157613,1768553718309,-500.0,0.00039452,10]
[402157614,1768553718325,-712.34,0.00039452,10]
[402157615,1768553718334,-500.0,0.00039452,10]
[402157616,1768553718343,-1048.59,0.00039452,10]
[402157617,1768553718352,-797.78,0.00039452,10]
[402157618,1768553718361,-864.57,0.00039452,10]
[402157619,1768553718371,-500.0,0.00039452,10]
[402157620,1768553718380,-502.10569963,0.00039452,10]
[402157621,1768553718389,-669.34,0.00039452,10]
[402157622,1768553718398,-500.0,0.00039452,10]
[402157623,1768553718408,-1695.98,0.00039452,10]
[402157624,1768553718417,-746.93,0.00039452,10]
[402157625,1768553718426,-710.63,0.00039452,10]
[402157626,1768553718435,-576.53,0.00039452,10]
[402157627,1768553718444,-551.55,0.00039452,10]
[402157628,1768553718453,-848.31,0.00039452,10]
[402157629,1768553718461,-500.0,0.00039452,10]
[402157630,1768553718471,-500.0,0.00039452,10]
[402157631,1768553718479,-640.15,0.00039452,10]
[402157632,1768553718489,-893.03,0.00039452,10]
[402157633,1768553718498,-829.07,0.00039452,10]
[402157634,1768553718507,-1044.65,0.00039452,2]
[402157635,1768553718515,-580.09,0.00039452,10]
[402157636,1768553718525,-2280.83,0.00039452,10]
[402157637,1768553718533,-950.38,0.00039452,10]
[402157638,1768553718542,-925.85,0.00039452,10]
[402157639,1768553718551,-926.38,0.00039452,10]
[402157640,1768553718561,-1091.37,0.00039452,10]
[402157641,1768553718570,-934.74,0.00039452,10]
[402157642,1768553718580,-1096.7,0.00039452,10]
[402157643,1768553718588,-615.77,0.00039452,10]
[402157644,1768553718599,-694.36,0.00039452,10]
[402157645,1768553718608,-816.08,0.00039452,10]
[402157646,1768553718617,-703.54,0.00039452,10]
[402157647,1768553718627,-2000.78,0.00039452,10]
[402157648,1768553718637,-1150.42,0.00039452,10]
[402157649,1768553718646,-500.0,0.00039452,10]
[402157650,1768553718657,-658.36,0.00039452,10]
[402157651,1768553718666,-788.58,0.00039452,10]
[402157652,1768553718675,-578.18,0.00039452,10]
[402157653,1768553718684,-1428.02,0.00039452,10]
[402157654,1768553718693,-500.0,0.00039452,10]
[402157655,1768553718703,-705.82,0.00039452,10]
[402157656,1768553718715,-931.05,0.00039452,10]
[402157657,1768553718724,-577.64,0.00039452,10]
[402157658,1768553718733,-528.44,0.00039452,10]
[402157659,1768553718742,-2108.45,0.00039452,10]
[402157660,1768553718750,-245.48282714,0.00039452,10]
[402157661,1768553718759,-1149.82,0.00039452,10]
[402157662,1768553718767,-500.0,0.00039452,10]
[402157663,1768553718776,-683.35,0.00039452,10]
[402157664,1768553718785,-959.04,0.00039452,10]
[402157665,1768553718794,-500.0,0.00039452,10]
[402157666,1768553718803,-700.17,0.00039452,10]
[402157667,1768553718811,-625.74,0.00039452,10]
[402157668,1768553718820,-754.4,0.00039452,10]
[402157669,1768553718829,-500.0,0.00039452,10]
[402157670,1768553718839,-737.5,0.00039452,10]
[402157671,1768553718848,-625.2,0.00039452,10]
[402157672,1768553718858,-641.84,0.00039452,10]
[402157673,1768553718867,-610.78,0.00039452,10]
[402157674,1768553718876,-544.89,0.00039452,10]
[402157675,1768553718885,-523.76,0.00039452,10]
[402157676,1768553718894,-637.87,0.00039452,10]
[402157677,1768553718904,-500.0,0.00039452,10]
[402157678,1768553718914,-551.65,0.00039452,10]
[402157679,1768553718923,-500.0,0.00039452,10]
[402157680,1768553718932,-1594.08,0.00039452,10]
[402157681,1768553718941,-500.0,0.00039452,10]
[402157682,1768553718951,-500.0,0.00039452,10]
[402157683,1768553718960,-796.44,0.00039452,10]
[402157684,1768553718969,-500.0,0.00039452,10]
[402157685,1768553718979,-500.0,0.00039452,10]
[402157686,1768553718988,-1146.06,0.00039452,10]
[402157687,1768553718998,-567.16,0.00039452,10]
[402157688,1768553719183,-500.0,0.00039452,10]
[402157689,1768553719192,-522.75,0.00039452,10]
[402157690,1768553719201,-517.33,0.00039452,10]
[402157691,1768553719210,-500.0,0.00039452,10]
[402157692,1768553719219,-500.0,0.00039452,10]
[402157693,1768553719227,-500.0,0.00039452,10]
[402157694,1768553719236,-751.2,0.00039452,10]
[402157695,1768553719246,-500.0,0.00039452,10]
[402157696,1768553719254,-662.29,0.00039452,10]
[402157697,1768553719263,-669.08,0.00039452,10]
[402157698,1768553719281,-500.0,0.00039452,10]
[402157699,1768553719293,-677.54,0.00039452,10]
[402157700,1768553719302,-1168.86,0.00039452,10]
[402157701,1768553719312,-1117.06,0.00039452,10]
[402157702,1768553719321,-1648.88,0.00039452,10]
[402157703,1768553719330,-636.52,0.00039452,10]
[402157704,1768553719339,-636.43,0.00039452,10]
[402157705,1768553719348,-575.94,0.00039452,10]
[402157706,1768553719357,-716.91,0.00039452,10]
[402157707,1768553719366,-876.77,0.00039452,10]
[402157708,1768553719375,-373.09219736,0.00039452,10]
[402157709,1768553719384,-500.0,0.00039452,10]
[402157710,1768553719393,-990.78,0.00039452,10]
[402157711,1768553719403,-1150.93,0.00039452,10]
[402157712,1768553719412,-909.88,0.00039452,10]
[402157713,1768553719421,-541.15,0.00039452,10]
[402157714,1768553719430,-500.0,0.00039452,10]
[402157715,1768553719439,-903.48,0.00039452,10]
[402157716,1768553719447,-527.48,0.00039452,10]
[402157717,1768553719456,-500.0,0.00039452,10]
[402157718,1768553719465,-744.14,0.00039452,10]
[402157719,1768553719475,-507.96,0.00039452,10]
[402157720,1768553719484,-662.66,0.00039452,10]
[402157721,1768553719493,-690.13,0.00039452,10]
[402157722,1768553719502,-519.9,0.00039452,10]
[402157723,1768553719511,-1521.24,0.00039452,10]
[402157724,1768553719519,-823.6,0.00039452,10]
[402157725,1768553719528,-500.0,0.00039452,10]
[402157726,1768553719537,-500.0,0.00039452,10]
[402157727,1768553719546,-1331.43,0.00039452,10]
[402157728,1768553719557,-732.95,0.00039452,10]
[402157729,1768553719567,-1326.59,0.00039452,10]
[402157730,1768553719578,-1280.38,0.00039452,10]
[402157731,1768553719587,-500.0,0.00039452,10]
[402157732,1768553719596,-791.99,0.00039452,10]
[402157733,1768553719605,-500.0,0.00039452,10]
[402157734,1768553719615,-512.72,0.00039452,10]
[402157735,1768553719624,-979.74,0.00039452,10]
[402157736,1768553719634,-500.0,0.00039452,10]
[402157737,1768553719646,-644.37,0.00039452,10]
[402157738,1768553719655,-577.2,0.00039452,10]
[402157739,1768553719664,-970.71,0.00039452,10]
[402157740,1768553719674,-570.0,0.00039452,10]
[402157741,1768553719683,-500.0,0.00039452,10]
[402157742,1768553719693,-500.0,0.00039452,10]
[402157743,1768553719702,-751.52,0.00039452,10]
[402157744,1768553719711,-1015.29,0.00039452,10]
[402157745,1768553719720,-685.85,0.00039452,10]
[402157746,1768553719730,-518.25,0.00039452,10]
[402157747,1768553719739,-612.29,0.00039452,10]
[402157748,1768553719748,-500.0,0.00039452,10]
[402157749,1768553719757,-500.0,0.00039452,10]
[402157750,1768553719766,-806.51,0.00039452,10]
[402157751,1768553719775,-500.0,0.00039452,10]
[402157752,1768553719784,-695.39,0.00039452,10]
[402157753,1768553719794,-607.83,0.00039452,10]
[402157754,1768553719803,-549.65,0.00039452,10]
[402157755,1768553719812,-500.0,0.00039452,10]
[402157756,1768553719822,-1220.06,0.00039452,10]
[402157757,1768553719832,-1662.06,0.00039452,10]
[402157758,1768553719841,-500.0,0.00039452,10]
[402157759,1768553719851,-1639.22,0.00039452,10]
[402157760,1768553719862,-500.0,0.00039452,10]
[402157761,1768553719872,-500.0,0.00039452,10]
[402157762,1768553719882,-908.6,0.00039452,10]
[402157763,1768553719892,-500.0,0.00039452,10]
[402157764,1768553719902,-1617.91,0.00039452,10]
[402157765,1768553719912,-816.75,0.00039452,10]
[402157766,1768553719922,-1143.12,0.00039452,10]
[402157767,1768553719931,-500.0,0.00039452,10]
[402157768,1768553719941,-500.0,0.00039452,10]
[402157769,1768553719950,-500.0,0.00039452,10]
[402157770,1768553719960,-716.45,0.00039452,10]
[402157771,1768553719971,-500.0,0.00039452,10]
[402157772,1768553719980,-1027.78,0.00039452,10]
[402157773,1768553719990,-885.26,0.00039452,10]
[402157774,1768553719999,-500.0,0.00039452,10]
[402157775,1768553720009,-678.11,0.00039452,10]
[402157776,1768553720019,-1096.77,0.00039452,10]
[402157777,1768553720029,-702.08,0.00039452,10]
[402157778,1768553720039,-681.79,0.00039452,10]
[402157779,1768553720050,-1477.47,0.00039452,10]
[402157780,1768553720060,-500.0,0.00039452,10]
[402157781,1768553720069,-989.99,0.00039452,10]
[402157782,1768553720079,-676.3,0.00039452,10]
[402157783,1768553720088,-500.0,0.00039452,10]
[402157784,1768553720097,-500.0,0.00039452,10]
[402157785,1768553720106,-912.84,0.00039452,10]
[402157786,1768553720116,-807.54,0.00039452,10]
[402157787,1768553720125,-500.0,0.00039452,10]
[402157788,1768553720134,-591.47,0.00039452,10]
[402157789,1768553720144,-1293.68,0.00039452,10]
[402157790,1768553720153,-500.0,0.00039452,10]
[402157791,1768553720162,-500.0,0.00039452,10]
[402157792,1768553720171,-618.86,0.00039452,10]
[402157793,1768553720180,-834.67,0.00039452,10]
[402157794,1768553720190,-500.0,0.00039452,10]
[402157795,1768553720199,-500.0,0.00039452,10]
[402157796,1768553720209,-4949.68,0.00039452,10]
[402157797,1768553720218,-1730.65,0.00039452,10]
[402157798,1768553720228,-500.46,0.00039452,10]
[402157799,1768553720238,-930.98,0.00039452,10]
[402157800,1768553720248,-875.62,0.00039452,10]
[402157801,1768553720258,-500.0,0.00039452,10]
[402157802,1768553720268,-500.0,0.00039452,10]
[402157803,1768553720278,-500.0,0.00039452,10]
[402157804,1768553720287,-1041.0,0.00039452,10]
[402157805,1768553720296,-500.0,0.00039452,10]
[402157806,1768553720306,-1262.31,0.00039452,10]
[402157807,1768553720316,-524.92,0.00039452,10]
[402157808,1768553720325,-591.83,0.00039452,10]
[402157809,1768553720334,-614.68,0.00039452,10]
[402157810,1768553720343,-500.0,0.00039452,10]
[402157811,1768553720352,-790.99,0.00039452,10]
[402157812,1768553720362,-1848.72,0.00039452,10]
[402157813,1768553720371,-500.0,0.00039452,10]
[402157814,1768553720380,-500.0,0.00039452,10]
[402157815,1768553720390,-353.65,0.00039452,2]
[402157816,1768553720399,-1044.21,0.00039452,10]
[402157817,1768553720410,-500.0,0.00039452,10]
[402157818,1768553720419,-500.0,0.00039452,10]
[402157819,1768553720428,-1947.44,0.00039452,10]
[402157820,1768553720437,-629.32,0.00039452,10]
[402157821,1768553720447,-1553.42,0.00039452,10]
[402157822,1768553720456,-1024.82,0.00039452,10]
[402157823,1768553720466,-795.66,0.00039452,10]
[402157824,1768553720475,-1036.49,0.00039452,10]
[402157825,1768553720484,-1013.98,0.00039452,10]
[402157826,1768553720494,-875.71,0.00039452,10]
[402157827,1768553720502,-548.64,0.00039452,10]
[402157828,1768553720512,-562.25,0.00039452,10]
[402157829,1768553720521,-1422.5,0.00039452,10]
[402157830,1768553720530,-543.96,0.00039452,10]
[402157831,1768553720539,-1126.68,0.00039452,10]
[402157832,1768553720548,-2121.76,0.00039452,10]
[402157833,1768553720558,-532.76,0.00039452,10]
[402157834,1768553720569,-1905.23,0.00039452,10]
[402157835,1768553720578,-502.52,0.00039452,10]
[402157836,1768553720586,-540.07,0.00039452,10]
[402157837,1768553720595,-1016.35,0.00039452,10]
[402157838,1768553720606,-5056.94,0.00039452,10]
[402157839,1768553720615,-592.16,0.00039452,10]
[402157840,1768553720623,-889.56,0.00039452,10]
[402157841,1768553720632,-500.0,0.00039452,10]
[402157842,1768553720644,-1150.45,0.00039452,10]
[402157843,1768553720654,-1345.33,0.00039452,10]
[402157844,1768553720663,-648.45,0.00039452,10]
[402157845,1768553720673,-1052.14,0.00039452,10]
[402157846,1768553720682,-990.43,0.00039452,10]
[402157847,1768553720691,-500.0,0.00039452,10]
[402157848,1768553720701,-877.08,0.00039452,10]
[402157849,1768553720710,-1245.81,0.00039452,10]
[402157850,1768553720719,-665.86,0.00039452,10]
[402157851,1768553720728,-1029.8,0.00039452,10]
[402157852,1768553720738,-1298.7,0.00039452,10]
[402157853,1768553720747,-581.72,0.00039452,10]
[402157854,1768553720756,-850.69,0.00039452,10]
[402157855,1768553720765,-995.5,0.00039452,10]
[402157856,1768553720774,-1075.5,0.00039452,10]
[402157857,1768553720783,-341.33964098,0.00039452,10]
[402157858,1768553720792,-519.23,0.00039452,10]
[402157859,1768553720801,-529.03,0.00039452,10]
[402157860,1768553720811,-716.08,0.00039452,10]
[402157861,1768553720820,-500.0,0.00039452,10]
[402157862,1768553720829,-1363.31,0.00039452,10]
[402157863,1768553720839,-598.71,0.00039452,10]
[402157864,1768553720848,-1221.02,0.00039452,10]
[402157865,1768553720857,-1064.34,0.00039452,10]
[402157866,1768553720867,-823.04,0.00039452,10]
[402157867,1768553720876,-500.0,0.00039452,10]
[402157868,1768553720886,-2853.19,0.00039452,10]
[402157869,1768553720895,-549.28,0.00039452,10]
[402157870,1768553720904,-913.43,0.00039452,10]
[402157871,1768553720914,-591.9,0.00039452,10]
[402157872,1768553720923,-500.0,0.00039452,10]
[402157873,1768553720933,-2393.97,0.00039452,10]
[402157874,1768553720943,-500.0,0.00039452,10]
[402157875,1768553720952,-589.47,0.00039452,10]
[402157876,1768553720961,-2257.21,0.00039452,10]
[402157877,1768553720971,-805.83,0.00039452,10]
[402157878,1768553720981,-546.1,0.00039452,10]
[402157879,1768553720990,-500.0,0.00039452,10]
[402157880,1768553720999,-1412.18,0.00039452,10]
[402157881,1768553721008,-500.0,0.00039452,10]
[402157882,1768553721017,-500.0,0.00039452,10]
[402157883,1768553721026,-500.0,0.00039452,10]
[402157884,1768553721036,-712.99,0.00039452,10]
[402157885,1768553721045,-661.07,0.00039452,10]
[402157886,1768553721054,-732.11,0.00039452,10]
[402157887,1768553721063,-693.86,0.00039452,10]
[402157888,1768553721072,-713.12,0.00039452,10]
[402157889,1768553721082,-1182.17,0.00039452,10]
[402157890,1768553721091,-652.47,0.00039452,10]
[402157891,1768553721100,-714.22,0.00039452,10]
[402157892,1768553721109,-652.5,0.00039452,10]
[402157893,1768553721119,-1245.62,0.00039452,10]
[402157894,1768553721128,-500.0,0.00039452,10]
[402157895,1768553721137,-500.0,0.00039452,10]
[402157896,1768553721146,-1497.09,0.00039452,10]
[402157897,1768553721156,-1210.4,0.00039452,10]
[402157898,1768553721165,-1212.59,0.00039452,10]
[402157899,1768553721175,-941.66,0.00039452,10]
[402157900,1768553721184,-1223.9,0.00039452,10]
[402157901,1768553721194,-500.0,0.00039452,10]
[402157902,1768553721203,-1292.5,0.00039452,10]
[402157903,1768553721212,-1141.45,0.00039452,10]
[402157904,1768553721222,-885.86,0.00039452,10]
[402157905,1768553721231,-520.6,0.00039452,10]
[402157906,1768553721242,-3901.38,0.00039452,10]
[402157907,1768553721254,-532.57,0.00039452,10]
[402157908,1768553721265,-1219.5,0.00039452,10]
[402157909,1768553721276,-2909.8,0.00039452,10]
[402157910,1768553721285,-858.87,0.00039452,10]
[402157911,1768553721295,-500.0,0.00039452,10]
[402157912,1768553721305,-544.68,0.00039452,10]
[402157913,1768553721314,-993.01,0.00039452,10]
[402157914,1768553721324,-1760.07,0.00039452,10]
[402157915,1768553721334,-553.74,0.00039452,10]
[402157916,1768553721344,-1228.85,0.00039452,10]
[402157917,1768553721353,-500.0,0.00039452,10]
[402157918,1768553721363,-1541.19,0.00039452,10]
[402157919,1768553721372,-599.03,0.00039452,10]
[402157920,1768553721382,-1004.55,0.00039452,10]
[402157921,1768553721391,-1256.3,0.00039452,10]
[402157922,1768553721401,-722.08,0.00039452,10]
[402157923,1768553721410,-1627.41,0.00039452,10]
[402157924,1768553721420,-999.49,0.00039452,10]
[402157925,1768553721430,-1143.9,0.00039452,10]
[402157926,1768553721439,-1224.65,0.00039452,10]
[402157927,1768553721448,-560.6,0.00039452,10]
[402157928,1768553721457,-1155.7,0.00039452,10]
[402157929,1768553721466,-500.0,0.00039452,10]
[402157930,1768553721475,-614.31,0.00039452,10]
[402157931,1768553721484,-2192.51,0.00039452,10]
[402157932,1768553721493,-637.11,0.00039452,10]
[402157933,1768553721502,-2225.78,0.00039452,10]
[402157934,1768553721510,-758.24,0.00039452,10]
[402157935,1768553721519,-500.0,0.00039452,10]
[402157936,1768553721528,-2013.58,0.00039452,10]
[402157937,1768553721536,-2864.87,0.00039452,10]
[402157938,1768553721546,-808.72,0.00039452,10]
[402157939,1768553721555,-1567.87,0.00039452,10]
[402157940,1768553721566,-518.17,0.00039452,10]
[402157941,1768553721576,-1811.28,0.00039452,10]
[402157942,1768553721585,-558.81,0.00039452,10]
[402157943,1768553721594,-659.01,0.00039452,10]
[402157944,1768553721603,-1071.23,0.00039452,10]
[402157945,1768553721612,-866.89,0.00039452,10]
[402157946,1768553721622,-1032.65,0.00039452,10]
[402157947,1768553721632,-759.31,0.00039452,10]
[402157948,1768553721644,-637.41,0.00039452,10]
[402157949,1768553721654,-1020.76,0.00039452,10]
[402157950,1768553721663,-1128.16,0.00039452,10]
[402157951,1768553721673,-7210.62,0.00039452,10]
[402157952,1768553721683,-547.39,0.00039452,10]
[402157953,1768553721692,-5211.07,0.00039452,10]
[402157954,1768553721701,-1681.96,0.00039452,10]
[402157955,1768553721710,-729.24,0.00039452,10]
[402157956,1768553721721,-500.0,0.00039452,10]
[402157957,1768553721730,-1064.3,0.00039452,10]
[402157958,1768553721739,-5144.07,0.00039452,10]
[402157959,1768553721748,-521.48,0.00039452,10]
[402157960,1768553721758,-532.27,0.00039452,10]
[402157961,1768553721767,-1000.95,0.00039452,10]
[402157962,1768553721777,-672.3,0.00039452,10]
[402157963,1768553721787,-2351.16,0.00039452,10]
[402157964,1768553721798,-1000.0,0.00039452,10]
[402157965,1768553721808,-679.92,0.00039452,10]
[402157966,1768553721817,-642.7,0.00039452,10]
[402157967,1768553721826,-1048.19,0.00039452,10]
[402157968,1768553721835,-2044.82,0.00039452,10]
[402157969,1768553721845,-500.0,0.00039452,10]
[402157970,1768553721853,-735.56,0.00039452,10]
[402157971,1768553721862,-804.46,0.00039452,10]
[402157972,1768553721871,-500.0,0.00039452,10]
[402157973,1768553721880,-793.57,0.00039452,10]
[402157974,1768553721890,-1159.07,0.00039452,10]
[402157975,1768553721899,-2221.23,0.00039452,10]
[402157976,1768553721908,-580.85,0.00039452,10]
[402157977,1768553721917,-941.49,0.00039452,10]
[402157978,1768553721926,-599.94,0.00039452,10]
[402157979,1768553721936,-677.99,0.00039452,10]